bitfinex/quotes_BTCUSD_20260215
["timestamp","ask_amount","ask_price","bid_price","bid_amount"]
[1771119964996,0.0004,69456.0,69451.0,0.0253252]
[1771119967761,0.0024,69456.0,69451.0,0.0253252]
[1771119968354,4e-05,69452.0,69451.0,0.0253252]
[1771119969070,4e-05,69452.0,69451.0,0.0263252]
[1771119969627,4e-05,69452.0,69451.0,0.17499986]
[1771119969835,0.07198441,69460.0,69451.0,0.17499986]
[1771119969836,4e-05,69462.0,69451.0,0.15011086]
[1771119970036,4e-05,69462.0,69457.0,0.07198692]
[1771119970251,4e-05,69462.0,69459.0,0.07198404]
[1771119970465,4e-05,69462.0,69461.0,0.07198283]
[1771119971102,4e-05,69462.0,69460.0,0.09687212]
[1771119971272,4e-05,69462.0,69461.0,0.07198283]
[1771119971479,0.07197526,69469.0,69460.0,0.024889]
[1771119971480,0.0719708,69473.0,69460.0,0.14867466]
[1771119971827,0.0004,69476.0,69466.0,0.09686562]
[1771119971960,1e-08,69472.0,69471.0,0.07197247]
[1771119972568,0.0004,69476.0,69472.0,0.07197096]
[1771119972782,0.0004,69476.0,69475.0,0.07196833]
[1771119972972,0.00012,69480.0,69475.0,0.07196833]
[1771119973374,0.00012,69480.0,69463.0,0.34444]
[1771119973375,0.02400953,69488.0,69464.0,0.13844555]
[1771119973574,0.07195855,69485.0,69476.0,0.07196634]
[1771119973781,0.07195991,69484.0,69475.0,0.09482901]
[1771119974020,0.07195991,69484.0,69470.0,0.00012]
[1771119974021,0.28783604,69484.0,69470.0,0.00012]
[1771119974169,4e-05,69470.0,69460.0,1e-08]
[1771119974523,0.02400953,69460.0,69453.0,0.0719911]
[1771119974669,0.07198623,69458.0,69452.0,0.09244]
[1771119975070,0.02400953,69459.0,69452.0,0.09244]
[1771119975295,0.07198573,69459.0,69452.0,0.09244]
[1771119976082,0.07198421,69460.0,69452.0,0.09244]
[1771119976232,0.02400953,69461.0,69452.0,0.01884901]
[1771119976439,0.02400953,69461.0,69460.0,0.001]
[1771119976807,0.02400953,69461.0,69452.0,0.09084049]
[1771119977007,0.003,69459.0,69452.0,0.09084049]
[1771119977291,0.02400953,69461.0,69452.0,0.09084049]
[1771119977427,0.09599247,69461.0,69453.0,0.07199113]
[1771119977621,0.09999247,69461.0,69453.0,0.07199113]
[1771119977828,0.09599247,69461.0,69453.0,0.07199113]
[1771119978248,0.002,69459.0,69453.0,0.07199113]
[1771119978848,0.002,69459.0,69454.0,0.07199009]
[1771119979438,0.09599276,69461.0,69453.0,0.07199113]
[1771119979842,0.02500953,69461.0,69454.0,0.07199009]
[1771119980051,4e-05,69462.0,69456.0,0.07198707]
[1771119980360,4e-05,69462.0,69455.0,0.07198888]
[1771119982765,0.00044,69462.0,69455.0,0.06426189]
[1771119982963,0.00044,69462.0,69455.0,0.06526189]
[1771119983316,4e-05,69456.0,69455.0,0.06422189]
[1771119983623,4e-05,69456.0,69455.0,0.06522189]
[1771119983826,4e-05,69458.0,69456.0,0.07198777]
[1771119983992,0.00044,69462.0,69456.0,0.07198777]
[1771119985029,0.00044,69462.0,69455.0,0.07798873]
[1771119985337,0.00044,69462.0,69456.0,0.07198781]
[1771119985930,0.00044,69462.0,69452.0,0.01884901]
[1771119985931,0.00044,69462.0,69459.0,0.07198465]
[1771119986108,0.00044,69462.0,69456.0,0.004]
[1771119986300,0.07198364,69461.0,69456.0,0.004]
[1771119986499,0.00044,69462.0,69448.0,4e-05]
[1771119986739,0.00044,69462.0,69440.0,0.00012]
[1771119986740,0.07200149,69443.0,69440.0,0.00012]
[1771119986937,0.02400953,69442.0,69430.0,0.00032]
[1771119987175,0.07201004,69435.0,69430.0,0.00032]
[1771119987374,0.072011,69434.0,69430.0,0.00032]
[1771119987586,0.09601957,69435.0,69430.0,0.00032]
[1771119987736,0.09601957,69435.0,69425.0,0.11100103]
[1771119987940,0.02400953,69435.0,69428.0,0.07201701]
[1771119988139,0.07200905,69436.0,69428.0,0.07201701]
[1771119989396,0.02400953,69438.0,69430.0,0.001]
[1771119989609,0.02400953,69438.0,69425.0,0.00013074]
[1771119989963,0.02400953,69447.0,69430.0,0.00012]
[1771119990171,0.07200772,69437.0,69430.0,0.00012]
[1771119990374,0.07199631,69448.0,69430.0,0.00012]
[1771119990577,0.07201316,69432.0,69430.0,0.00012]
[1771119990759,0.07201316,69432.0,69425.0,0.00013074]
[1771119990760,0.02400953,69431.0,69425.0,0.00013074]
[1771119990965,0.09602593,69429.0,69425.0,0.00013074]
[1771119991169,0.07201817,69427.0,69425.0,0.00013074]
[1771119991374,0.09587664,69426.0,69425.0,0.00013074]
[1771119991584,0.02400953,69426.0,69425.0,0.00013074]
[1771119991803,0.00012,69450.0,69427.0,0.13844555]
[1771119992013,0.07799795,69447.0,69437.0,0.07200743]
[1771119992229,0.07199795,69447.0,69437.0,0.07200743]
[1771119992441,0.14271318,69454.0,69442.0,4e-05]
[1771119992442,0.3818402,69454.0,69442.0,4e-05]
[1771119992651,0.07199364,69451.0,69442.0,0.07204184]
[1771119992862,4e-05,69456.0,69442.0,4e-05]
[1771119993061,4e-05,69456.0,69443.0,0.13844555]
[1771119993203,4e-05,69456.0,69453.0,0.07199079]
[1771119993403,4e-05,69456.0,69455.0,0.07198905]
[1771119993733,0.00056,69460.0,69451.0,0.02286102]
[1771119993938,0.07198501,69459.0,69451.0,0.02286102]
[1771119994138,0.0719867,69458.0,69450.0,0.07199345]
[1771119994321,0.07211751,69458.0,69450.0,0.07199345]
[1771119994524,0.07198706,69457.0,69449.0,0.07199471]
[1771119994724,0.07198706,69457.0,69450.0,0.07199415]
[1771119995125,0.0721171,69458.0,69450.0,0.07199415]
[1771119995343,0.007,69456.0,69449.0,0.07199471]
[1771119995543,0.07198707,69457.0,69449.0,0.07199471]
[1771119995973,0.02400953,69456.0,69448.0,4e-05]
[1771119996292,0.0960014,69453.0,69448.0,4e-05]
[1771119996964,0.07198972,69455.0,69446.0,0.07203831]
[1771119997285,0.01,69456.0,69448.0,0.07199545]
[1771119997598,0.07198921,69455.0,69447.0,0.07199713]
[1771119997836,0.23872628,69441.0,69440.0,1e-08]
[1771119997978,0.0960131,69441.0,69440.0,1e-08]
[1771119998946,0.0720098,69435.0,69430.0,0.00012]
[1771119999148,0.07201179,69434.0,69430.0,0.00012]
[1771119999283,0.07201208,69433.0,69430.0,0.00012]
[1771119999482,0.07201112,69434.0,69430.0,0.00012]
[1771120000932,0.07201243,69433.0,69430.0,0.00012]
[1771120001206,0.07201394,69431.0,69430.0,0.00012]
[1771120001445,0.07201394,69431.0,69430.0,0.01212]
[1771120001642,0.07201394,69431.0,69430.0,0.00012]
[1771120002046,0.07201394,69431.0,69430.0,0.01312]
[1771120002269,0.07201394,69431.0,69430.0,0.00012]
[1771120003175,0.0225834,69434.0,69430.0,0.01312]
[1771120003377,0.07201351,69432.0,69430.0,0.01312]
[1771120003710,0.07201186,69433.0,69430.0,0.01312]
[1771120003918,0.0225834,69433.0,69425.0,0.0002]
[1771120004119,0.07201912,69426.0,69425.0,0.00033074]
[1771120005020,0.0225834,69437.0,69425.0,0.07235087]
[1771120005220,0.0225834,69437.0,69425.0,0.08335087]
[1771120005457,0.07201208,69433.0,69426.0,0.07201912]
[1771120005660,0.07201208,69433.0,69425.0,0.00033074]
[1771120005879,0.001,69426.0,69425.0,0.01233074]
[1771120006315,0.07201399,69431.0,69425.0,0.00033074]
[1771120006676,0.07201399,69431.0,69430.0,0.0002]
[1771120007653,0.09459739,69431.0,69430.0,0.0002]
[1771120007826,0.0216123,69432.0,69430.0,0.0002]
[1771120008525,0.07201472,69431.0,69430.0,0.0002]
[1771120008825,0.006,69431.0,69430.0,0.0002]
[1771120009024,0.02160952,69435.0,69430.0,0.0002]
[1771120009226,0.007,69432.0,69430.0,0.0002]
[1771120009599,0.0720129,69432.0,69425.0,0.00033074]
[1771120010625,0.07201083,69434.0,69426.0,0.07201912]
[1771120010828,0.003,69431.0,69427.0,0.07201796]
[1771120011040,0.07201083,69434.0,69427.0,0.07201796]
[1771120011385,0.02160952,69435.0,69425.0,0.07235061]
[1771120011386,0.07201256,69433.0,69425.0,0.07235061]
[1771120011587,0.003,69432.0,69425.0,0.07235061]
[1771120011796,0.07201256,69433.0,69425.0,0.07235061]
[1771120012007,0.001,69431.0,69425.0,0.07235061]
[1771120012132,0.001,69431.0,69428.0,0.0720161]
[1771120012483,0.02160952,69438.0,69425.0,0.00033074]
[1771120012695,0.07201302,69432.0,69425.0,0.00033074]
[1771120012887,0.07501387,69433.0,69425.0,0.00033074]
[1771120013071,0.07201421,69431.0,69425.0,0.00033074]
[1771120013243,4e-05,69426.0,69425.0,0.00029074]
[1771120013921,4e-05,69426.0,69425.0,0.0723109]
[1771120014043,4e-05,69430.0,69429.0,0.07201601]
[1771120014260,4e-05,69436.0,69429.0,0.07201601]
[1771120014668,4e-05,69436.0,69430.0,0.0720143]
[1771120014875,0.28726647,69442.0,69430.0,0.0721743]
[1771120015156,0.07200689,69438.0,69430.0,0.0721743]
[1771120015401,0.07200774,69437.0,69430.0,0.0721743]
[1771120015862,0.001,69436.0,69431.0,0.0720137]
[1771120016062,0.001,69436.0,69432.0,0.07201216]
[1771120016883,0.07200477,69440.0,69432.0,0.07201216]
[1771120017099,0.07200477,69440.0,69433.0,0.07201139]
[1771120017306,0.00012,69490.0,69436.0,0.14852264]
[1771120017307,4e-05,69452.0,69436.0,0.14852264]
[1771120017530,4e-05,69452.0,69434.0,4e-05]
[1771120017531,4e-05,69452.0,69449.0,0.07153527]
[1771120017994,4e-05,69452.0,69451.0,0.0719932]
[1771120018235,1e-08,69458.0,69457.0,0.07198698]
[1771120018648,0.00013081,69458.0,69452.0,0.14852264]
[1771120018853,4e-05,69458.0,69445.0,0.07199838]
[1771120019053,4e-05,69456.0,69454.0,0.0719892]
[1771120019645,4e-05,69456.0,69455.0,0.07198905]
[1771120019796,4e-05,69456.0,69454.0,0.06554238]
[1771120020003,0.0226234,69456.0,69452.0,0.001]
[1771120020460,4e-05,69456.0,69453.0,0.07199079]
[1771120020812,4e-05,69456.0,69455.0,0.07198905]
[1771120021566,0.00012,69460.0,69455.0,0.07198869]
[1771120021777,0.0004,69458.0,69456.0,0.07198778]
[1771120022003,0.0004,69458.0,69457.0,0.07198698]
[1771120022210,0.0004,69458.0,69456.0,0.07198778]
[1771120022422,0.0004,69458.0,69455.0,0.07198855]
[1771120022626,0.0004,69458.0,69456.0,0.07198801]
[1771120022830,0.0004,69458.0,69457.0,0.07198698]
[1771120023031,0.0004,69458.0,69456.0,0.07198801]
[1771120024151,0.0005562,69460.0,69458.0,0.07198594]
[1771120024404,0.0004,69462.0,69456.0,0.004]
[1771120024612,0.0004,69462.0,69458.0,0.07198577]
[1771120024819,0.0004,69462.0,69460.0,0.071983]
[1771120025024,0.0004,69467.0,69462.0,0.07198132]
[1771120025227,0.0004,69467.0,69456.0,0.003]
[1771120025431,0.0004,69467.0,69456.0,0.02695504]
[1771120026073,0.0004,69467.0,69459.0,0.07198416]
[1771120026279,0.0004,69467.0,69456.0,0.02395504]
[1771120026493,0.0225834,69465.0,69450.0,0.00012]
[1771120026704,0.0225834,69465.0,69440.0,0.36879504]
[1771120026705,0.0225834,69458.0,69442.0,0.07200168]
[1771120026906,0.0714932,69451.0,69442.0,0.07213249]
[1771120027111,0.0714932,69451.0,69443.0,0.07200129]
[1771120027299,0.07199421,69452.0,69442.0,0.07213233]
[1771120027497,0.16990408,69454.0,69442.0,0.00013081]
[1771120027702,0.07199284,69452.0,69443.0,0.07200146]
[1771120027906,0.07199122,69453.0,69444.0,0.0720002]
[1771120028778,0.0225834,69454.0,69442.0,0.28813885]
[1771120029335,0.005,69451.0,69446.0,0.07199747]
[1771120029541,0.0225834,69454.0,69446.0,0.07199747]
[1771120029767,0.08,69447.0,69446.0,0.07199747]
[1771120029967,0.008,69454.0,69453.0,0.07199113]
[1771120030173,4e-05,69458.0,69453.0,0.07199113]
[1771120030375,1e-08,69460.0,69451.0,0.0719932]
[1771120030581,1e-08,69460.0,69459.0,0.07198491]
[1771120030754,1e-08,69460.0,69459.0,0.07194084]
[1771120031561,1e-08,69460.0,69459.0,0.09589588]
[1771120031758,1e-08,69460.0,69459.0,0.02395504]
[1771120032120,1e-08,69460.0,69456.0,0.07198799]
[1771120032447,1e-08,69460.0,69453.0,0.02395504]
[1771120032700,0.00800001,69460.0,69459.0,0.001]
[1771120032997,0.00800001,69460.0,69455.0,0.0719882]
[1771120032998,1e-08,69460.0,69455.0,0.0719882]
[1771120033220,0.00700001,69460.0,69456.0,0.001]
[1771120033413,1e-08,69460.0,69455.0,0.0719882]
[1771120033566,1e-08,69460.0,69456.0,0.07198789]
[1771120033929,0.00800001,69460.0,69459.0,0.001]
[1771120034135,1e-08,69460.0,69459.0,0.07198491]
[1771120034543,1e-08,69460.0,69457.0,0.07198637]
[1771120034693,1e-08,69460.0,69455.0,0.071989]
[1771120035441,0.00600001,69460.0,69456.0,0.07298794]
[1771120035640,1e-08,69460.0,69456.0,0.07198794]
[1771120035850,1e-08,69460.0,69456.0,0.06426097]
[1771120036077,0.00600001,69460.0,69456.0,0.06426097]
[1771120036271,1e-08,69460.0,69456.0,0.06426097]
[1771120036471,0.00600001,69460.0,69456.0,0.06526097]
[1771120036630,0.00600001,69460.0,69456.0,0.001]
[1771120038283,1e-08,69460.0,69456.0,0.07198709]
[1771120038650,0.00600001,69460.0,69456.0,0.07298709]
[1771120038852,1e-08,69460.0,69456.0,0.07198709]
[1771120039272,0.00600001,69460.0,69456.0,0.07298709]
[1771120039478,1e-08,69460.0,69456.0,0.07198709]
[1771120039684,1e-08,69460.0,69457.0,0.07198657]
[1771120039880,0.00600001,69460.0,69457.0,0.07198657]
[1771120040120,1e-08,69460.0,69457.0,0.07198657]
[1771120041379,0.00600001,69460.0,69457.0,0.07198657]
[1771120042171,1e-08,69460.0,69457.0,0.07198657]
[1771120042317,0.00200001,69460.0,69457.0,0.07198657]
[1771120042729,1e-08,69460.0,69457.0,0.07198657]
[1771120042924,0.00200001,69460.0,69457.0,0.07198657]
[1771120043365,1e-08,69460.0,69457.0,0.07194657]
[1771120044090,1e-08,69460.0,69456.0,4e-05]
[1771120044399,1e-08,69460.0,69459.0,0.07198491]
[1771120044643,0.00900001,69460.0,69459.0,0.07198491]
[1771120045402,1e-08,69460.0,69459.0,0.07198491]
[1771120045703,0.00900001,69460.0,69459.0,0.07198491]
[1771120045863,1e-08,69460.0,69459.0,0.07198491]
[1771120046268,0.00900001,69460.0,69459.0,0.07198491]
[1771120047309,0.00900001,69460.0,69459.0,0.07181768]
[1771120048829,1e-08,69460.0,69459.0,0.07181768]
[1771120048978,1e-08,69460.0,69459.0,0.09570048]
[1771120049332,4e-05,69466.0,69456.0,0.28799024]
[1771120049333,0.0003122,69478.0,69477.0,0.07196626]
[1771120049553,0.00012,69480.0,69475.0,0.0719663]
[1771120049746,0.00012,69480.0,69476.0,0.07196689]
[1771120049946,0.00012,69480.0,69477.0,0.07196575]
[1771120050123,0.00012,69480.0,69476.0,0.07196689]
[1771120050531,0.0005562,69480.0,69476.0,0.07196689]
[1771120051182,0.07196911,69475.0,69464.0,0.28795628]
[1771120051383,0.07196909,69476.0,69469.0,0.07197447]
[1771120052351,0.07196661,69477.0,69469.0,0.07197447]
[1771120052552,0.007,69476.0,69469.0,0.07197447]
[1771120053772,0.007,69476.0,69470.0,0.07197349]
[1771120053969,1e-08,69481.0,69460.0,0.00012]
[1771120054211,0.00012553,69481.0,69470.0,0.00012]
[1771120054371,0.0719658,69478.0,69470.0,0.07209328]
[1771120054568,0.012,69476.0,69470.0,0.07209328]
[1771120054795,0.0719658,69478.0,69471.0,0.07197214]
[1771120055582,0.0004,69476.0,69471.0,0.07197214]
[1771120055782,0.0114,69476.0,69471.0,0.07197214]
[1771120056229,0.0004,69476.0,69471.0,0.07197214]
[1771120056430,0.0004,69476.0,69475.0,0.07196833]
[1771120056761,1e-08,69476.0,69475.0,0.07196833]
[1771120057085,1e-08,69476.0,69475.0,0.09585113]
[1771120057717,1e-08,69481.0,69477.0,0.07196552]
[1771120057901,1e-08,69481.0,69480.0,0.07196315]
[1771120059142,0.00700001,69481.0,69480.0,0.07196315]
[1771120060168,0.00700001,69481.0,69464.0,0.15335993]
[1771120060398,0.00700001,69481.0,69472.0,0.07196946]
[1771120060549,1e-08,69481.0,69474.0,0.07196879]
[1771120060988,1e-08,69481.0,69480.0,0.005]
[1771120061207,1e-08,69481.0,69474.0,0.07196879]
[1771120061865,0.0719626,69481.0,69474.0,0.07196879]
[1771120062066,0.0719626,69481.0,69480.0,0.002]
[1771120062299,1e-08,69481.0,69474.0,0.07196859]
[1771120062677,0.07196218,69481.0,69474.0,0.07696859]
[1771120063437,0.07196218,69481.0,69474.0,0.005]
[1771120063582,0.07236218,69481.0,69474.0,0.07696933]
[1771120063785,0.00040001,69481.0,69474.0,0.07196933]
[1771120063988,0.00040001,69481.0,69474.0,0.07196936]
[1771120064190,0.07236261,69481.0,69480.0,0.004]
[1771120064532,0.00040001,69481.0,69476.0,0.07196695]
[1771120064740,0.07236232,69481.0,69474.0,0.07596936]
[1771120065035,0.07236232,69481.0,69474.0,0.07196936]
[1771120065252,0.07236232,69481.0,69480.0,0.004]
[1771120065616,0.07236232,69481.0,69474.0,0.07196936]
[1771120065820,0.07236232,69481.0,69474.0,0.07396936]
[1771120066439,0.0723622,69481.0,69474.0,0.07396909]
[1771120066616,0.00040001,69481.0,69475.0,0.07196757]
[1771120066938,0.00040001,69481.0,69479.0,0.07196345]
[1771120067307,0.00040001,69481.0,69480.0,0.002]
[1771120067507,0.00040001,69481.0,69480.0,0.07196315]
[1771120067904,1e-08,69481.0,69480.0,0.07196315]
[1771120068126,1e-08,69481.0,69480.0,0.09548624]
[1771120068541,4e-05,69484.0,69483.0,0.07196004]
[1771120068941,4e-05,69484.0,69480.0,0.02352309]
[1771120069141,4e-05,69484.0,69480.0,0.07196306]
[1771120070672,4e-05,69484.0,69480.0,0.07996306]
[1771120070831,4e-05,69484.0,69480.0,0.07196306]
[1771120071176,4e-05,69484.0,69480.0,0.07796306]
[1771120071740,4e-05,69484.0,69480.0,0.07196306]
[1771120071939,0.00144,69484.0,69480.0,0.08396306]
[1771120072311,0.15511734,69482.0,69470.0,0.43688]
[1771120072439,0.02357592,69483.0,69470.0,0.43688]
[1771120072440,0.09517165,69474.0,69471.0,0.0006362]
[1771120072643,0.28784847,69483.0,69471.0,0.0006362]
[1771120072644,0.09553801,69482.0,69471.0,0.0006362]
[1771120072850,0.07196218,69481.0,69471.0,0.0006362]
[1771120073048,0.07196364,69480.0,69472.0,0.07197144]
[1771120073233,0.07196427,69479.0,69472.0,0.07197144]
[1771120073433,0.07196427,69479.0,69471.0,0.07260846]
[1771120074643,0.07296427,69479.0,69471.0,0.07860846]
[1771120075477,0.07296427,69479.0,69472.0,0.07197098]
[1771120075678,0.001,69479.0,69474.0,0.07196862]
[1771120076284,0.001,69479.0,69472.0,0.07197115]
[1771120076587,0.001,69479.0,69471.0,0.07860841]
[1771120076790,0.28784203,69483.0,69471.0,0.07260841]
[1771120076983,0.02401592,69484.0,69474.0,0.002]
[1771120077209,0.07196198,69482.0,69474.0,0.002]
[1771120077384,0.07196389,69480.0,69472.0,0.07180413]
[1771120077604,0.001,69479.0,69473.0,0.07197011]
[1771120077799,0.07196155,69482.0,69473.0,0.07197011]
[1771120078049,4e-05,69494.0,69489.0,0.07195383]
[1771120078246,1e-08,69495.0,69494.0,0.07194865]
[1771120078436,1e-08,69495.0,69487.0,0.36812309]
[1771120078644,1e-08,69495.0,69488.0,0.07195413]
[1771120079050,1e-08,69495.0,69489.0,0.07195372]
[1771120079222,1e-08,69495.0,69489.0,0.07295372]
[1771120079570,1e-08,69495.0,69494.0,0.07194865]
[1771120080786,0.00016,69500.0,69494.0,0.07190457]
[1771120080992,0.0004,69502.0,69494.0,0.22617325]
[1771120080993,1e-08,69502.0,69494.0,0.22617325]
[1771120081255,0.00013077,69502.0,69495.0,0.02352309]
[1771120081436,0.07207134,69502.0,69495.0,0.02314469]
[1771120081640,0.001,69495.0,69494.0,0.07994861]
[1771120081861,0.00013077,69502.0,69495.0,0.02352309]
[1771120082016,0.00013077,69502.0,69500.0,0.07194178]
[1771120082217,4e-05,69508.0,69505.0,0.07193714]
[1771120082726,0.01151133,69509.0,69506.0,0.07193618]
[1771120083083,0.01151133,69509.0,69505.0,0.07193714]
[1771120083331,0.01151133,69509.0,69504.0,0.07193821]
[1771120083535,0.01151133,69509.0,69500.0,0.07194244]
[1771120083736,0.003,69508.0,69504.0,0.07193736]
[1771120083937,0.08344481,69509.0,69500.0,0.02352309]
[1771120084139,0.01151133,69509.0,69500.0,0.02352309]
[1771120084310,0.01551133,69509.0,69500.0,0.02352309]
[1771120084526,0.01151133,69509.0,69500.0,0.02352309]
[1771120084907,0.003,69508.0,69500.0,0.02352309]
[1771120085341,0.003,69508.0,69501.0,0.07194124]
[1771120085736,0.003,69508.0,69500.0,0.02352309]
[1771120085737,0.01151133,69509.0,69500.0,0.02352309]
[1771120085945,0.00012,69510.0,69498.0,0.4355275]
[1771120085946,0.00012,69510.0,69508.0,0.07193416]
[1771120086177,0.07194036,69503.0,69497.0,0.3446]
[1771120086555,0.07194106,69502.0,69497.0,0.3446]
[1771120086977,0.07194106,69502.0,69500.0,0.006]
[1771120087179,0.07193558,69507.0,69500.0,0.006]
[1771120087700,0.07193558,69507.0,69498.0,0.0719443]
[1771120087905,0.0004,69508.0,69504.0,0.07193823]
[1771120088308,4e-05,69506.0,69501.0,0.02352309]
[1771120088465,0.00016,69510.0,69506.0,0.02352309]
[1771120088664,0.00016,69510.0,69507.0,0.02352309]
[1771120089112,0.00016,69510.0,69507.0,0.07193502]
[1771120089270,4e-05,69512.0,69509.0,0.07193313]
[1771120089479,4e-05,69512.0,69510.0,0.02352309]
[1771120089683,0.07197075,69512.0,69508.0,0.02352309]
[1771120089886,0.07197075,69512.0,69507.0,0.17927014]
[1771120089887,4e-05,69512.0,69507.0,0.17927014]
[1771120090288,4e-05,69512.0,69507.0,0.25120463]
[1771120090491,4e-05,69512.0,69510.0,0.001]
[1771120090717,4e-05,69512.0,69507.0,0.25120463]
[1771120090919,4e-05,69512.0,69510.0,0.15574705]
[1771120091134,0.00104,69512.0,69510.0,0.15574705]
[1771120092336,4e-05,69512.0,69510.0,0.15574705]
[1771120092533,4e-05,69512.0,69511.0,0.07193106]
[1771120092734,4e-05,69516.0,69513.0,0.02352309]
[1771120093400,4e-05,69516.0,69514.0,0.02332367]
[1771120093879,4e-05,69516.0,69514.0,0.17907072]
[1771120094307,0.00404,69516.0,69514.0,0.17907072]
[1771120094508,0.00404,69516.0,69514.0,0.25099858]
[1771120094713,0.00444,69516.0,69514.0,0.25099858]
[1771120095292,0.00044,69516.0,69514.0,0.17907072]
[1771120095500,0.00044,69516.0,69515.0,0.02332367]
[1771120095702,0.00244,69516.0,69515.0,0.17907072]
[1771120096081,0.00244,69516.0,69515.0,0.22767397]
[1771120096311,0.00244,69516.0,69515.0,0.15574705]
[1771120096509,0.00044,69516.0,69515.0,0.15574705]
[1771120096715,0.00244,69516.0,69515.0,0.15574705]
[1771120096934,0.00044,69516.0,69515.0,0.15574705]
[1771120097303,0.00244,69516.0,69515.0,0.15574705]
[1771120098667,0.00044,69516.0,69515.0,0.15574705]
[1771120098812,0.00044,69516.0,69515.0,0.15674705]
[1771120099231,1e-08,69517.0,69516.0,0.02332367]
[1771120099598,1e-08,69517.0,69516.0,0.15574705]
[1771120099926,1e-08,69517.0,69507.0,0.28773792]
[1771120099927,0.0719352,69507.0,69500.0,0.00016]
[1771120100146,0.02362157,69506.0,69500.0,0.00016]
[1771120100339,0.02362157,69503.0,69500.0,0.00016]
[1771120100761,0.07193687,69506.0,69500.0,0.00016]
[1771120100998,0.0719376,69505.0,69495.0,0.28059394]
[1771120101192,0.07193687,69506.0,69495.0,0.28059394]
[1771120101193,0.07193841,69504.0,69495.0,0.2807247]
[1771120101585,0.07193841,69504.0,69496.0,0.07194588]
[1771120101799,0.0719374,69505.0,69497.0,0.07194544]
[1771120102001,0.07193836,69504.0,69497.0,0.07194544]
[1771120102633,0.07793836,69504.0,69497.0,0.07194544]
[1771120102835,0.07193836,69504.0,69497.0,0.07194544]
[1771120103173,4e-05,69502.0,69497.0,0.07190544]
[1771120103622,4e-05,69502.0,69495.0,0.4967661]
[1771120104040,4e-05,69502.0,69497.0,0.07194495]
[1771120104938,4e-05,69502.0,69498.0,0.07194425]
[1771120105774,0.00304,69502.0,69498.0,0.07194425]
[1771120105928,4e-05,69502.0,69498.0,0.07194425]
[1771120106314,0.00304,69502.0,69498.0,0.07194425]
[1771120107832,4e-05,69502.0,69498.0,0.07194425]
[1771120108157,0.00304,69502.0,69498.0,0.07194425]
[1771120109049,0.07197633,69506.0,69495.0,0.20897741]
[1771120109050,4e-05,69506.0,69495.0,0.20897741]
[1771120109257,4e-05,69506.0,69504.0,0.07193748]
[1771120111063,0.00016,69510.0,69499.0,0.15324536]
[1771120111270,4e-05,69512.0,69501.0,0.02332367]
[1771120111766,0.002,69506.0,69500.0,0.00012]
[1771120112279,0.07193601,69507.0,69500.0,0.00012]
[1771120112475,0.07193654,69506.0,69500.0,0.00012]
[1771120113029,0.07393654,69506.0,69500.0,0.00012]
[1771120115236,0.002,69506.0,69500.0,0.00012]
[1771120116407,0.07393652,69506.0,69500.0,0.00012]
[1771120117439,0.002,69506.0,69500.0,0.00012]
[1771120117641,0.0719355,69507.0,69500.0,0.00012]
[1771120118062,0.0719355,69507.0,69500.0,0.00412]
[1771120118484,4e-05,69502.0,69500.0,0.00412]
[1771120118927,4e-05,69502.0,69500.0,0.00012]
[1771120119079,4e-05,69502.0,69500.0,0.00312]
[1771120119267,4e-05,69502.0,69500.0,0.07506239]
[1771120119471,4e-05,69502.0,69500.0,0.07206239]
[1771120119679,4e-05,69502.0,69500.0,0.07806239]
[1771120120492,4e-05,69502.0,69500.0,0.00612]
[1771120120889,4e-05,69502.0,69500.0,0.07806205]
[1771120121416,4e-05,69502.0,69500.0,0.00612]
[1771120121609,4e-05,69502.0,69497.0,0.0002]
[1771120121913,0.02413608,69502.0,69497.0,0.0002]
[1771120122085,4e-05,69502.0,69498.0,0.07194388]
[1771120122300,4e-05,69502.0,69497.0,0.07214547]
[1771120122883,4e-05,69502.0,69497.0,0.07414547]
[1771120123980,4e-05,69502.0,69497.0,0.0002]
[1771120124218,4e-05,69502.0,69497.0,0.0042]
[1771120124634,4e-05,69502.0,69497.0,0.0002]
[1771120124840,4e-05,69502.0,69497.0,0.0042]
[1771120125012,4e-05,69502.0,69497.0,0.0761446]
[1771120125224,4e-05,69502.0,69499.0,0.07194281]
[1771120125665,4e-05,69502.0,69497.0,0.0042]
[1771120126634,0.00044,69506.0,69497.0,0.0042]
[1771120126860,0.00044,69506.0,69499.0,0.28777082]
[1771120127054,0.00044,69506.0,69497.0,0.0002]
[1771120127258,0.00044,69506.0,69500.0,0.07194233]
[1771120128271,0.07237661,69506.0,69497.0,0.0002]
[1771120128469,0.02330939,69504.0,69497.0,0.0002]
[1771120128627,0.02330939,69499.0,69495.0,0.20897741]
[1771120129029,0.09525316,69499.0,69495.0,0.20897741]
[1771120129462,0.07194632,69497.0,69495.0,0.20897741]
[1771120129614,0.09525316,69499.0,69495.0,0.20897741]
[1771120129819,0.02330939,69499.0,69495.0,0.20897741]
[1771120130022,0.13835134,69504.0,69495.0,0.20897741]
[1771120130266,0.07194106,69502.0,69495.0,0.20897741]
[1771120130688,0.07194145,69501.0,69495.0,0.20897741]
[1771120131099,0.07194145,69501.0,69495.0,0.18904937]
[1771120131248,0.02330939,69503.0,69495.0,0.18904937]
[1771120131449,0.07194396,69499.0,69495.0,0.18904937]
[1771120132086,0.07194658,69496.0,69495.0,0.18904937]
[1771120132287,0.07194588,69497.0,69495.0,0.18904937]
[1771120132761,0.07194395,69499.0,69495.0,0.18904937]
[1771120133094,0.07194037,69502.0,69495.0,0.18904937]
[1771120133095,0.07194277,69500.0,69495.0,0.18904937]
[1771120133293,4e-05,69496.0,69495.0,0.18904937]
[1771120134889,4e-05,69500.0,69495.0,0.18904937]
[1771120135314,4e-05,69500.0,69497.0,0.07194555]
[1771120136327,4e-05,69502.0,69496.0,0.07194658]
[1771120136538,4e-05,69502.0,69501.0,0.07194141]
[1771120136747,0.00044,69506.0,69502.0,0.07194022]
[1771120136889,0.00044,69506.0,69496.0,0.02329417]
[1771120137086,0.00044,69506.0,69502.0,0.07193966]
[1771120137498,0.00044,69506.0,69501.0,0.07193951]
[1771120137712,0.00044,69506.0,69503.0,0.07193898]
[1771120137954,0.00044,69506.0,69498.0,0.07194348]
[1771120138170,0.00044,69506.0,69502.0,0.07194006]
[1771120140026,0.00044,69506.0,69498.0,0.001]
[1771120140342,0.00044,69506.0,69497.0,0.0002]
[1771120140580,0.00044,69506.0,69499.0,0.07194348]